lending/lending_fUSD_20250430
["ID","MTS","AMOUNT","RATE_DAILY","PERIOD"]
[359409997,1745993030150,300.0,0.00019,2]
[359409998,1745993045432,179.17,0.000433,60]
[359409999,1745993045879,179.17,0.000441,60]
[359410000,1745993046484,179.17,0.000446,60]
[359410001,1745993046936,179.17,0.000452,60]
[359410002,1745993048659,350.43,0.00047897,30]
[359410003,1745993065873,3478.57392997,0.0003,120]
[359410004,1745993073888,470.48818784,0.00045838,31]
[359410005,1745993116984,150.0,0.00047945,120]
[359410006,1745993119275,500.0,0.00047945,120]
[359410007,1745993121968,152.86945876,0.00047945,120]
[359410008,1745993124760,150.0,0.00047945,120]
[359410009,1745993126296,500.0,0.00047945,120]
[359410010,1745993127437,500.0,0.00047945,120]
[359410011,1745993130131,500.0,0.00047945,120]
[359410012,1745993133776,500.0,0.00047945,120]
[359410013,1745993146599,159.74839181,0.000462,30]
[359410016,1745993173723,202.42121256,0.00047945,120]
[359410017,1745993175340,150.0,0.00047945,120]
[359410018,1745993177514,150.0,0.00047945,120]
[359410019,1745993178442,150.0,0.00047945,120]
[359410020,1745993179848,500.0,0.00047945,120]
[359410021,1745993181058,154.50317233,0.00047945,61]
[359410022,1745993181662,156.54113417,0.00047945,120]
[359410023,1745993183038,154.88032908,0.00047945,120]
[359410024,1745993184174,150.0,0.00047945,120]
[359410025,1745993193537,500.0,0.00042466,31]
[359410026,1745993193623,500.0,0.00042466,31]
[359410027,1745993193675,500.0,0.00042466,31]
[359410028,1745993193952,189.67670201,0.00042466,31]
[359410029,1745993195298,600.0,0.00045,120]
[359410030,1745993212899,1000.0,0.00045999,120]
[359410036,1745993243147,179.18,0.00042,60]
[359410037,1745993243573,179.18,0.000435,60]
[359410038,1745993244009,179.18,0.00046,60]
[359410039,1745993244289,1134.72140524,0.00047945,120]
[359410042,1745993288178,248.34739861,0.00047945,120]
[359410043,1745993290822,500.0,0.00047945,120]
[359410044,1745993298948,150.0,0.00047945,120]
[359410045,1745993313496,500.0,0.00042466,31]
[359410046,1745993313557,500.0,0.00042466,31]
[359410047,1745993313611,182.77369141,0.00042466,31]
[359410048,1745993345601,150.0,0.00047945,120]
[359410063,1745993347326,500.0,0.00047945,120]
[359410065,1745993351281,150.0,0.00047945,120]
[359410066,1745993352787,150.0,0.00047945,120]
[359410067,1745993353885,150.0,0.00047945,120]
[359410068,1745993355150,500.0,0.00047945,120]
[359410069,1745993357793,500.0,0.00047945,120]
[359410070,1745993364144,450.21094934,0.00047897,30]
[359410084,1745993432128,-272.0271949,0.00020199,2]
[359410085,1745993432140,-1230.37145169,0.00020199,2]
[359410086,1745993432153,-380.078108,0.00020199,2]
[359410087,1745993432192,-538.23324541,0.00020199,2]
[359410088,1745993432201,-436.59,0.00020357,2]
[359410089,1745993432211,-1200.0,0.00020406,2]
[359410090,1745993432221,-10000.0,0.00020407,2]
[359410091,1745993432231,-663.1462758,0.00020472,2]
[359410092,1745993432241,-893.13,0.0002058,2]
[359410093,1745993432250,-663.1462758,0.00020583,2]
[359410094,1745993432260,-150.48424008,0.00020629,2]
[359410095,1745993432270,-250.0,0.00020722,2]
[359410096,1745993432280,-500.0,0.0002074,2]
[359410097,1745993432290,-1000.0,0.00020756,2]
[359410098,1745993432301,-5039.38,0.00020762,2]
[359410099,1745993432311,-2953.15521163,0.00020768,2]
[359410100,1745993432322,-1928.26063306,0.00020768,2]
[359410101,1745993432369,-332.26095277,0.00020768,2]
[359410106,1745993432647,500.0,0.00042466,31]
[359410107,1745993433038,327.94158398,0.00042466,31]
[359410109,1745993438091,-2244.86114067,0.00020768,2]
[359410110,1745993438150,-1655.02,0.00020768,2]
[359410111,1745993438209,-1056.01886131,0.00020768,2]
[359410230,1745993439647,179.18,0.000435,60]
[359410248,1745993443407,-1641.14223036,0.00020768,2]
[359410319,1745993504575,-359.8840111,0.00020768,2]
[359410320,1745993504587,-2850.0,0.00020768,2]
[359410321,1745993504599,-302.0,0.00020768,2]
[359410322,1745993504610,-3293.69163606,0.00020768,2]
[359410323,1745993504619,-200.0,0.00020834,2]
[359410324,1745993504628,-699.02676907,0.000209,2]
[359410325,1745993504638,-1999.61,0.00020901,2]
[359410326,1745993504647,-502.0,0.00020932,2]
[359410327,1745993504656,-158.28,0.00020972,2]
[359410328,1745993504666,-350.0,0.00021,2]
[359410329,1745993504675,-150.48424008,0.00021015,2]
[359410330,1745993504684,-799.0,0.00021055,2]
[359410331,1745993504693,-9999.99,0.00021056,2]
[359410332,1745993504703,-6949.26,0.00021056,2]
[359410333,1745993504712,-150.99,0.00021056,2]
[359410334,1745993504721,-999.99,0.00021056,2]
[359410335,1745993504731,-150.99,0.00021056,2]
[359410336,1745993504741,-9999.99,0.00021056,2]
[359410337,1745993504751,-165.9,0.00021111,2]
[359410338,1745993504760,-19999.99,0.00021115,2]
[359410339,1745993504770,-6758.99,0.00021115,2]
[359410340,1745993504779,-29999.99,0.00021115,2]
[359410341,1745993504790,-6325.8792,0.00021133,2]
[359410342,1745993504799,-162.28,0.00021144,2]
[359410343,1745993504809,-451.38338166,0.00021172,2]
[359410344,1745993504820,-23900.0,0.00021182,2]
[359410345,1745993504830,-3343.89482277,0.00021325,2]
[359410346,1745993504840,-594.42177226,0.00021356,2]
[359410347,1745993504849,-1000.0,0.000214,2]
[359410348,1745993504858,-1000.0,0.000214,2]
[359410349,1745993504868,-1000.0,0.000214,2]
[359410350,1745993504878,-1000.0,0.000214,2]
[359410351,1745993504888,-579.0,0.00021425,2]
[359410352,1745993504898,-1000.0,0.00021467,2]
[359410353,1745993504908,-500.0,0.00021467,2]
[359410354,1745993504918,-6218.60357743,0.00021563,2]
[359410355,1745993504927,-5050.1421,0.00021567,2]
[359410356,1745993504936,-2455.8532,0.00021567,2]
[359410357,1745993504945,-31169.04345277,0.00021567,2]
[359410358,1745993505696,300.0,0.00044999,30]
[359410359,1745993505797,500.0,0.00044999,30]
[359410360,1745993506292,157.99,0.0004,30]
[359410361,1745993506342,157.99,0.00045838,120]
[359410362,1745993529082,150.0,0.00047945,120]
[359410363,1745993530650,500.0,0.00047945,120]
[359410364,1745993535735,150.0,0.00047945,120]
[359410365,1745993536884,251.08104489,0.00047945,120]
[359410366,1745993537805,205.3598539,0.00047945,120]
[359410367,1745993538743,500.0,0.00047945,120]
[359410368,1745993541563,500.0,0.00047945,120]
[359410369,1745993550589,610.54298937,0.00040818,30]
[359410370,1745993552506,579.55910879,0.00042466,31]
[359410372,1745993559879,3058.0,0.00047945,120]
[359410373,1745993580351,5000.0,0.00047444,40]
[359410376,1745993592867,2000.0,0.00043147,120]
[359410377,1745993598576,200.0,0.00043147,120]
[359410378,1745993604532,1889.79067937,0.00047,120]
[359410379,1745993657411,299.61862379,0.00047945,120]
[359410380,1745993658406,150.0,0.00047945,120]
[359410381,1745993661041,3401.0,0.00047945,120]
[359410382,1745993666658,150.0,0.00047945,120]
[359410383,1745993668987,500.0,0.00047945,120]
[359410384,1745993672223,500.0,0.00047945,120]
[359410385,1745993673321,405.69137615,0.00042466,31]
[359410386,1745993673681,500.0,0.00047945,120]
[359410387,1745993676469,150.0,0.00047945,120]
[359410388,1745993680316,150.0,0.00047945,120]
[359410389,1745993682823,200.95864855,0.00047945,120]
[359410390,1745993703259,900.0,0.00045,46]
[359410391,1745993703379,900.0,0.00046,47]
[359410392,1745993760467,316.0,0.0004794,120]
[359410393,1745993767727,150.0,0.00047945,120]
[359410394,1745993768763,500.0,0.00047945,120]
[359410395,1745993773025,150.0,0.00047945,120]
[359410396,1745993773989,150.0,0.00047945,120]
[359410397,1745993774682,150.0,0.00047945,120]
[359410398,1745993775571,500.0,0.00047945,120]
[359410399,1745993778132,500.0,0.00047945,120]
[359410400,1745993779180,500.0,0.00047945,30]
[359410401,1745993787927,500.0,0.00045953,33]
[359410402,1745993792711,283.98396331,0.00042466,31]
[359410403,1745993907094,386.8,0.00047945,30]
[359410404,1745993910775,2500.037,0.00037587,49]
[359410405,1745993910945,180.201,0.00037587,49]
[359410406,1745993913645,198.78877432,0.00042466,31]
[359410407,1745993943841,2500.0,0.00047945,30]
[359410408,1745993950581,213.3032493,0.00047945,120]
[359410409,1745993951581,150.0,0.00047945,120]
[359410410,1745993954315,1027.0,0.00047945,30]
[359410411,1745993957106,157.24282809,0.00047945,120]
[359410412,1745993958810,500.0,0.00047945,120]
[359410413,1745993961191,150.0,0.00047945,120]
[359410414,1745994003244,900.0,0.00046,47]
[359410415,1745994006883,2500.0,0.00047945,30]
[359410416,1745994008941,500.0,0.00047945,120]
[359410417,1745994015140,150.0,0.00047945,120]
[359410418,1745994017224,2500.0,0.00047945,30]
[359410419,1745994028779,2500.0,0.00047945,30]
[359410420,1745994107921,2500.0,0.00047945,30]
[359410421,1745994121164,303.22041836,0.00047945,30]
[359410422,1745994123113,2500.0,0.00047945,30]
[359410423,1745994128130,150.0,0.00047945,120]
[359410424,1745994129951,256.09421529,0.00047945,120]
[359410425,1745994130997,153.31785026,0.00047945,120]
[359410426,1745994132601,500.0,0.00047945,120]
[359410427,1745994134624,186792.6634857,0.000479,30]
[359410428,1745994169392,1898.91,0.00019911,2]
[359410429,1745994300074,150.0,0.00037808,30]
[359410430,1745994308241,992599.48,0.0002,2]
[359410431,1745994342212,2610.44601777,0.00037808,30]
[359410436,1745994426265,633.64845851,0.00037808,30]
[359410454,1745994523664,408.25302769,0.00035,30]
[359410501,1745994623988,1000.0,0.00037808,120]
[359410509,1745994632334,-300.0,0.00019899,2]
[359410510,1745994632343,-1200.0,0.00019899,2]
[359410511,1745994632353,-300.0,0.00019899,2]
[359410512,1745994632363,-24098.47613968,0.000199,2]
[359410513,1745994632379,-1661.53110685,0.000199,2]
[359410514,1745994632391,-268.545,0.000199,2]
[359410515,1745994632403,-312.87278304,0.000199,2]
[359410516,1745994632422,-663.86994497,0.000199,2]
[359410517,1745994632499,-712.80182721,0.000199,2]
[359410518,1745994632511,-2081.76129062,0.000199,2]
[359410908,1745994638653,-6204.9454471,0.000199,2]
[359410909,1745994638665,-4684.39986388,0.000199,2]
[359410910,1745994638677,-1596.22669058,0.000199,2]
[359410911,1745994638687,-2019.78959242,0.000199,2]
[359410912,1745994638698,-670.93167722,0.000199,2]
[359410913,1745994638708,-294.28859393,0.000199,2]
[359410915,1745994638719,-8950.72885494,0.000199,2]
[359410917,1745994638728,-571.17732568,0.000199,2]
[359410919,1745994638738,-2500.0,0.000199,2]
[359410921,1745994638748,-635.47656558,0.000199,2]
[359410923,1745994638757,-153.26026647,0.000199,3]
[359410925,1745994638767,-6708.269,0.000199,2]
[359410927,1745994638777,-514.21269799,0.00019973,2]
[359410929,1745994638787,-500.0,0.00019973,2]
[359410931,1745994638796,-502.01998914,0.00019973,2]
[359410933,1745994638805,-500.0,0.00019973,2]
[359410936,1745994638815,-500.0,0.00019973,2]
[359410939,1745994638825,-500.0,0.00019973,2]
[359410942,1745994638834,-165.27,0.0001999,2]
[359410944,1745994638844,-165.27,0.0001999,2]
[359410946,1745994638853,-165.27,0.0001999,2]
[359410948,1745994638863,-165.27,0.0001999,2]
[359410950,1745994638872,-165.27,0.0001999,2]
[359410952,1745994638881,-165.27,0.0001999,2]
[359410954,1745994638890,-165.27,0.0001999,2]
[359410955,1745994638899,-165.27,0.0001999,2]
[359410957,1745994638908,-165.27,0.0001999,2]
[359410959,1745994638917,-165.27,0.0001999,2]
[359410961,1745994638927,-500.0,0.00019999,2]
[359410963,1745994638936,-312.01631586,0.00019999,2]
[359410965,1745994638945,-177.36590547,0.0002,2]
[359410967,1745994638954,-657.03025205,0.0002,2]
[359410969,1745994638964,-4885160.08405888,0.0002,2]
[359410972,1745994638979,-2541.89708473,0.0002,2]
[359410974,1745994638995,-4104.72063404,0.0002,2]
[359411165,1745994640987,-7754195.46429222,0.0002,2]
[359411167,1745994640997,-3225.31054999,0.0002,2]
[359411394,1745994643459,-528.23437299,0.000199,2]
[359411395,1745994643471,-1984.24822701,0.000199,2]
[359411396,1745994643480,-2793.59236308,0.0002,2]
[359411421,1745994643727,-769.26968033,0.0002,2]
[359411647,1745994660385,-2000.0,0.0002,4]
[359411649,1745994792341,-1000.0,0.000199,2]
[359411650,1745994792363,-3489.46996822,0.000199,2]
[359411651,1745994792385,-200.0,0.00019936,2]
[359411652,1745994792405,-429.75065803,0.00019973,2]
[359411653,1745994792425,-500.0,0.00019973,2]
[359411654,1745994792447,-500.0,0.00019973,2]
[359411655,1745994792469,-3489.46996818,0.0001999,2]
[359411656,1745994792489,-500.0,0.00019999,2]
[359411657,1745994792509,-312.01631586,0.00019999,2]
[359411658,1745994792530,-2846.15460642,0.00019999,2]
[359411659,1745994792551,-177.36590547,0.0002,2]
[359411660,1745994792575,-1910112.01257782,0.0002,2]
[359411661,1745994838988,250.0,0.00017,2]
[359411662,1745994840085,300.0,0.00019,2]
[359411663,1745994877490,-2500.0,0.000199,2]
[359411664,1745994877514,-183.37385477,0.000199,2]
[359411665,1745994877536,-200.0,0.00019936,2]
[359411666,1745994877560,-200.0,0.0001997,2]
[359411667,1745994877582,-552.49428965,0.00019973,2]
[359411668,1745994877603,-181.0,0.00019973,2]
[359411669,1745994877625,-500.0,0.00019973,2]
[359411670,1745994877645,-1079.13132906,0.00019979,2]
[359411671,1745994877667,-375.49707401,0.00019979,2]
[359411672,1745994877692,-5967.15256996,0.00019979,2]
[359411673,1745994877714,-196.19239596,0.00019979,2]
[359411674,1745994877735,-500.0,0.00019999,2]
[359411675,1745994877758,-300.0,0.00019999,2]
[359411676,1745994877782,-500.0,0.00019999,2]
[359411677,1745994877804,-666.0,0.00019999,2]
[359411678,1745994877828,-259.95808389,0.00019999,2]
[359411679,1745994877854,-160.48020382,0.00019999,2]
[359411680,1745994877876,-177.0238605,0.00019999,2]
[359411681,1745994877897,-244.21488733,0.00019999,2]
[359411682,1745994877920,-387673.08120258,0.0002,2]
[359411683,1745994877941,-4303.89037235,0.0002,2]
[359411684,1745994877963,-709.39652791,0.0002,2]
[359411685,1745994877984,-3350923.92334821,0.0002,2]
[359411686,1745994915596,-316.8594,0.000199,2]
[359411687,1745994915626,-29320.5974,0.000199,2]
[359411688,1745994915655,-300.0,0.00019998,2]
[359411689,1745994915683,-1200.0,0.00019998,2]
[359411690,1745994915710,-300.0,0.00019998,2]
[359411691,1745994915747,-500.0,0.00019999,2]
[359411692,1745994915782,-500.0,0.00019999,2]
[359411693,1745994915818,-500.0,0.00019999,2]
[359411694,1745994915855,-500.0,0.00019999,2]
[359411695,1745994915890,-500.0,0.00019999,2]
[359411696,1745994915928,-500.0,0.00019999,2]
[359411697,1745994915966,-224.38131274,0.00019999,2]
[359411698,1745994915987,-316.8594,0.0002,2]
[359411699,1745994915999,-29320.5974,0.0002,2]
[359411700,1745994916016,-300.0,0.0002,2]
[359411701,1745994916032,-1200.0,0.0002,2]
[359411702,1745994916043,-300.0,0.0002,2]
[359411703,1745994916060,-500.0,0.0002,2]
[359411704,1745994916072,-500.0,0.0002,2]
[359411705,1745994916084,-500.0,0.0002,2]
[359411706,1745994916095,-500.0,0.0002,2]
[359411707,1745994916106,-500.0,0.0002,2]
[359411708,1745994916124,-500.0,0.0002,2]
[359411709,1745994916146,-224.38131274,0.0002,2]
[359411710,1745994916161,-1490556.67377452,0.0002,2]
[359411711,1745994925218,3146.398707,0.000378,31]
[359411712,1745995235314,1855.78,0.0001786,2]
[359411713,1745995332055,151.13832585,0.00019216,2]
[359411714,1745995340664,151.99,0.00019288,2]
[359411715,1745995340857,151.99,0.00019293,2]
[359411716,1745995341251,151.99,0.00019299,2]
[359411717,1745995341458,151.99,0.00019305,2]
[359411718,1745995341668,151.99,0.0001931,2]
[359411719,1745995366073,-151.99,0.00019316,2]
[359411720,1745995366094,-151.99,0.00019322,2]
[359411721,1745995366114,-151.99,0.00019327,2]
[359411722,1745995366134,-151.99,0.00019333,2]
[359411723,1745995366155,-151.99,0.00019339,2]
[359411724,1745995366176,-151.99,0.00019344,2]
[359411725,1745995464068,155.32546143,0.00037808,30]
[359411726,1745995469528,1350.06,0.00018915,2]
[359411727,1745995469555,1427.22775582,0.00018915,2]
[359411728,1745995469577,4744.09608167,0.00018915,2]
[359411729,1745995469602,19774.79616251,0.00018915,2]
[359411730,1745995520352,150.0,0.000369,30]
[359411731,1745995525411,529.74,0.00018864,2]
[359411732,1745995534739,1678.31715218,0.000193,2]
[359411733,1745995540575,334.26697852,0.000378,30]
[359411734,1745995541363,615.0,0.00037808,30]
[359411737,1745995554106,222.11804783,0.00019284,2]
[359411738,1745995622304,-196.0,0.00024,7]
[359411747,1745995682384,267.97,0.0001877,2]
[359411748,1745995700403,23900.0,0.00018718,2]
[359411749,1745995749788,472400.0,0.00019305,2]
[359411945,1745995796593,544.0,0.00036,90]
[359411994,1745995831743,-188.69,0.00019328,2]
[359411995,1745995831753,-200.0,0.00019333,2]
[359411996,1745995831764,-250.0,0.00019339,2]
[359411997,1745995831774,-200.0,0.00019347,2]
[359411998,1745995831784,-151.99,0.0001935,2]
[359411999,1745995831794,-732.9311664,0.0001935,2]
[359412000,1745995831803,-151.99,0.00019356,2]
[359412001,1745995831812,-151.99,0.00019361,2]
[359412002,1745995831822,-151.99,0.00019367,2]
[359412003,1745995831833,-151.99,0.00019373,2]
[359412004,1745995831842,-1200.0,0.00019373,2]
[359412005,1745995831853,-300.0,0.00019373,2]
[359412007,1745995831862,-20215.01465902,0.00019374,2]
[359412008,1745995831874,-331.14851368,0.00019374,2]
[359412009,1745995831885,-1557.76287966,0.00019374,2]
[359412010,1745995831894,-151.99,0.00019378,2]
[359412011,1745995831903,-850.0,0.00019383,2]
[359412013,1745995831913,-500.0,0.00019383,2]
[359412015,1745995831922,-608.16101324,0.00019383,2]
[359412017,1745995831931,-151.99,0.00019384,2]
[359412019,1745995831940,-16815.55431755,0.00019384,2]
[359412029,1745995837515,1000.0,0.00018,2]
[359412031,1745995837538,1016.86315206,0.00018,2]
[359412032,1745995837617,-4117.42694455,0.00019384,2]
[359412033,1745995837654,-23429.77897,0.00019384,2]
[359412034,1745995837667,-10538.34667387,0.00019384,2]
[359412035,1745995837677,-150.0,0.00019562,2]
[359412036,1745995837687,-222.17539445,0.00019601,2]
[359412037,1745995837696,-1000.0,0.00019601,2]
[359412038,1745995837705,-296.63,0.00019601,2]
[359412039,1745995837714,-6962.62,0.00019601,2]
[359412040,1745995837723,-7143.63,0.00019601,2]
[359412041,1745995837732,-6445.83,0.00019601,2]
[359412042,1745995837742,-9999.99,0.00019601,2]
[359412043,1745995837751,-257.72,0.00019601,2]
[359412044,1745995837760,-1217.98,0.00019601,2]
[359412045,1745995837769,-150.99,0.00019601,2]
[359412046,1745995837778,-1430.52,0.00019601,2]
[359412047,1745995837787,-163.45,0.00019712,2]
[359412048,1745995837796,-24261.91505426,0.00019786,2]
[359412049,1745995837805,-224.7035,0.00019786,2]
[359412050,1745995837815,-166.69,0.00019822,2]
[359412051,1745995837825,-246.94945882,0.0001988,2]
[359412052,1745995837836,-507.5176,0.00019886,2]
[359412053,1745995837848,-1000.0,0.00019886,2]
[359412054,1745995837859,-36233.4817,0.00019886,2]
[359412065,1745995838014,-2500.0,0.00019886,2]
[359412068,1745995838076,-702.10695528,0.0001989,2]
[359412070,1745995838090,-165.27,0.0001989,2]
[359412072,1745995838101,-500.0,0.000199,2]
[359412074,1745995838111,-523.1366,0.000199,2]
[359412076,1745995838120,-6732.8258,0.000199,2]
[359412078,1745995838131,-1000.0,0.000199,2]
[359412080,1745995838142,-2278.8221,0.000199,2]
[359412082,1745995838152,-447.2031,0.000199,2]
[359412084,1745995838163,-2279.5855,0.000199,2]
[359412086,1745995838173,-7994.9383,0.000199,2]
[359412088,1745995838182,-1689.9757,0.000199,2]
[359412090,1745995838191,-208.11422937,0.00019924,2]
[359412092,1745995838200,-1000.0,0.00019924,2]
[359412094,1745995838210,-1000.0,0.00019924,2]
[359412096,1745995838219,-1000.0,0.00019924,2]
[359412098,1745995838228,-1000.0,0.00019924,2]
[359412100,1745995838237,-1000.0,0.00019924,2]
[359412102,1745995838246,-207.4,0.00019953,2]
[359412103,1745995838256,-151.0,0.00019954,2]
[359412104,1745995838266,-165.27,0.00019963,2]
[359412105,1745995838275,-501.27059628,0.00019973,2]
[359412106,1745995838284,-500.0,0.00019973,2]
[359412107,1745995838294,-1000.0,0.00019973,2]
[359412108,1745995838303,-639.0,0.00019973,2]
[359412109,1745995838312,-1000.0,0.00019973,2]
[359412110,1745995838322,-500.0,0.00019973,2]
[359412111,1745995838331,-500.0,0.00019973,2]
[359412112,1745995838340,-500.0,0.00019973,2]
[359412113,1745995838350,-500.0,0.00019973,2]
[359412114,1745995838359,-500.0,0.00019973,2]
[359412115,1745995838369,-500.0,0.00019973,2]
[359412116,1745995838381,-302.91204673,0.00019973,2]
[359412117,1745995838390,-500.0,0.00019973,2]
[359412118,1745995838399,-160.96109272,0.00019973,2]
[359412119,1745995838409,-500.0,0.00019973,2]
[359412120,1745995838418,-514.21269799,0.00019973,2]
[359412121,1745995838427,-547.80588098,0.00019973,2]
[359412122,1745995838436,-500.0,0.00019973,2]
[359412123,1745995838445,-153.48306685,0.00019973,2]
[359412124,1745995838455,-500.0,0.00019973,2]
[359412125,1745995838465,-500.0,0.00019973,2]
[359412126,1745995838474,-165.27,0.00019976,2]
[359412127,1745995838483,-165.27,0.00019976,2]
[359412128,1745995838492,-165.27,0.00019976,2]
[359412129,1745995838501,-2769.407,0.00019979,2]
[359412130,1745995838511,-180.201,0.00019979,2]
[359412131,1745995838520,-232.22200849,0.00019985,2]
[359412132,1745995838529,-318.04834448,0.00019985,2]
[359412133,1745995838539,-2888.9241613,0.00019986,2]
[359412134,1745995838548,-67099.3491321,0.00019986,2]
[359412135,1745995838557,-165.27,0.0001999,2]
[359412136,1745995838567,-165.27,0.0001999,2]
[359412137,1745995838577,-165.27,0.0001999,2]
[359412138,1745995838586,-165.27,0.0001999,2]
[359412139,1745995838595,-165.27,0.0001999,2]
[359412140,1745995838604,-200.0,0.00019994,2]
[359412141,1745995838613,-1000.0,0.00019999,2]
[359412142,1745995838623,-1006.49364963,0.00019999,2]
[359412143,1745995838633,-1134882.63519705,0.0002,2]
[359412144,1745995838642,-172.71821686,0.00020024,2]
[359412145,1745995838652,-1855.78,0.00020124,2]
[359412146,1745995838661,-1445.0,0.0002041,2]
[359412147,1745995838670,-250.0,0.00020493,2]
[359412148,1745995838680,-1000.0,0.000208,2]
[359412149,1745995838689,-1000.0,0.000208,2]
[359412150,1745995838698,-1000.0,0.000208,2]
[359412151,1745995838708,-1000.0,0.000208,2]
[359412152,1745995838717,-1000.0,0.000208,2]
[359412153,1745995838727,-1143.0,0.000208,2]
[359412154,1745995838735,-1000.0,0.000208,2]
[359412155,1745995838744,-1000.0,0.000208,2]
[359412156,1745995838753,-1000.0,0.000208,2]
[359412157,1745995838763,-163.45,0.00020808,2]
[359412158,1745995838772,-280.17388614,0.00020873,2]
[359412159,1745995838781,-500.0,0.00020873,2]
[359412160,1745995838791,-500.0,0.00020873,2]
[359412161,1745995838801,-605.49057199,0.00020873,2]
[359412162,1745995838811,-500.90262275,0.00020873,2]
[359412163,1745995838821,-500.86272975,0.00020873,2]
[359412164,1745995838832,-500.0,0.00020873,2]
[359412165,1745995838843,-500.0,0.00020873,2]
[359412166,1745995838854,-500.0,0.00020873,2]
[359412167,1745995838863,-500.0,0.00020899,2]
[359412168,1745995838873,-634.46377778,0.00020899,2]
[359412169,1745995838883,-95033.5170719,0.000209,2]
[359412170,1745995838892,-1899.0,0.00020908,2]
[359412171,1745995838901,-350.0,0.00021,2]
[359412172,1745995838910,-1000.0,0.00021,2]
[359412173,1745995838922,-1000.0,0.00021,2]
[359412174,1745995838931,-1000.0,0.00021,2]
[359412175,1745995838940,-1021.0,0.00021,2]
[359412176,1745995838950,-420.0,0.00021109,2]
[359412177,1745995838959,-1680.0,0.00021211,2]
[359412178,1745995838969,-250.0,0.00021224,2]
[359412179,1745995838978,-250.0,0.00021261,2]
[359412180,1745995838987,-200.0,0.00021261,2]
[359412181,1745995838997,-200.0,0.00021261,2]
[359412182,1745995839007,-250.0,0.00021285,2]
[359412183,1745995839016,-200.0,0.00021285,2]
[359412184,1745995839026,-1000.0,0.000213,2]
[359412185,1745995839038,-215.0738,0.00021322,2]
[359412186,1745995839048,-151.0,0.00021323,2]
[359412187,1745995839058,-2557.9781087,0.00021351,2]
[359412188,1745995839067,-1000.0,0.000214,2]
[359412189,1745995839079,-505.622,0.00021458,2]
[359412190,1745995839088,-255.0,0.00021496,2]
[359412191,1745995839097,-2481.96,0.00021533,2]
[359412192,1745995839107,-151.0,0.00021567,2]
[359412193,1745995839117,-522.44047793,0.00021573,2]
[359412194,1745995839129,-500.0,0.00021573,2]
[359412195,1745995839140,-384.83421062,0.00021573,2]
[359412196,1745995839150,-500.0,0.00021573,2]
[359412197,1745995839160,-500.0,0.00021573,2]
[359412198,1745995839170,-500.0,0.00021573,2]
[359412199,1745995839179,-500.0,0.00021573,2]
[359412200,1745995839189,-301.82266464,0.00021573,2]
[359412201,1745995839201,-501.42623263,0.00021573,2]
[359412202,1745995839211,-500.0,0.00021573,2]
[359412203,1745995839221,-500.23006761,0.00021573,2]
[359412204,1745995839232,-500.0,0.00021573,2]
[359412205,1745995839243,-500.0,0.00021573,2]